fUST/lending_fUST_20250817
["ID","MTS","AMOUNT","RATE_DAILY","PERIOD"]
[379740570,1755394764066,158.28053474,0.0002,3]
[379740573,1755394780680,156.0,0.0002,4]
[379740578,1755394806547,5039.85994276,0.00018329,2]
[379740581,1755394830456,296.73,0.00019911,2]
[379740583,1755394839721,156.0,0.000287,120]
[379740586,1755394848672,156.0,0.000287,120]
[379740591,1755394875827,156.0,0.0002,3]
[379740592,1755394909184,172.0,0.000287,120]
[379740593,1755394911320,292.96,0.0001991,2]
[379740594,1755394917545,1390.11268725,0.000199,2]
[379740602,1755394991590,289.23,0.00019911,2]
[379740609,1755395048380,157.404658,0.00019863,2]
[379740610,1755395062260,250.0,0.0002019,2]
[379740611,1755395074206,285.55,0.0001991,2]
[379740612,1755395092711,1343.36009079,0.000199,2]
[379740615,1755395137767,232.923587,0.00013699,2]
[379740616,1755395138016,232.923587,0.00020187,2]
[379740617,1755395160408,1724.88125936,0.00027732,120]
[379740618,1755395164089,281.91,0.00019908,2]
[379740621,1755395237189,-1343.36009056,0.00020403,2]
[379740622,1755395237214,-1765.0740006,0.00020516,2]
[379740623,1755395237235,-806.69285324,0.00020554,2]
[379740624,1755395237255,-242.0,0.00020561,2]
[379740625,1755395237276,-1200.0,0.00020561,2]
[379740626,1755395237298,-392.527,0.00020562,2]
[379740627,1755395237318,-480.0,0.00020562,2]
[379740628,1755395237338,-558.41,0.00020562,2]
[379740629,1755395237359,-480.0,0.00020562,2]
[379740630,1755395237381,-224.52250114,0.00020562,2]
[379740631,1755395247961,278.32,0.00019897,2]
[379740632,1755395256950,153.57226776,0.00020329,2]
[379740633,1755395265781,1253.76833917,0.000199,2]
[379740646,1755395330458,274.78,0.00019897,2]
[379740654,1755395415267,271.28,0.00019897,2]
[379740752,1755395437838,-297.37334768,0.00020462,2]
[379740753,1755395437848,-153.57226776,0.00020466,2]
[379740754,1755395437857,-381.56398962,0.00020561,2]
[379740876,1755395440829,-818.43601038,0.00020561,2]
[379740877,1755395440840,-255.47749886,0.00020562,2]
[379740878,1755395440850,-480.0,0.00020562,2]
[379740879,1755395440860,-480.0,0.00020562,2]
[379740880,1755395440871,-480.0,0.00020562,2]
[379740881,1755395440881,-311.86446594,0.00020562,2]
[379740882,1755395440890,-480.0,0.00020562,2]
[379740883,1755395440899,-466.86430372,0.00020562,2]
[379740884,1755395440909,-486.22661544,0.00020562,2]
[379740885,1755395440918,-480.0,0.00020562,2]
[379740886,1755395440928,-480.0,0.00020562,2]
[379740887,1755395440938,-692.84,0.00020562,2]
[379740888,1755395440947,-1170.74,0.00020562,2]
[379740889,1755395440956,-480.0,0.00020562,2]
[379740890,1755395440966,-1034.2,0.00020562,2]
[379740891,1755395440975,-534.44213534,0.00020562,2]
[379740892,1755395440984,-485.88170983,0.00020562,2]
[379740893,1755395440994,-480.0,0.00020562,2]
[379740894,1755395441003,-480.0,0.00020562,2]
[379740895,1755395441012,-712.06,0.00020562,2]
[379740896,1755395441022,-486.53649342,0.00020562,2]
[379740897,1755395441032,-486.06634239,0.00020562,2]
[379740898,1755395441042,-480.0,0.00020562,2]
[379740899,1755395441052,-480.0,0.00020562,2]
[379740900,1755395441062,-480.0,0.00020562,2]
[379740901,1755395441071,-484.05701967,0.00020562,2]
[379740902,1755395441081,-492.12367959,0.00020562,2]
[379740903,1755395441091,-480.0,0.00020562,2]
[379740904,1755395441100,-480.0,0.00020562,2]
[379740905,1755395441111,-480.0,0.00020562,2]
[379740906,1755395441122,-480.0,0.00020562,2]
[379740907,1755395441131,-494.80484904,0.00020562,2]
[379740908,1755395441141,-230.93773029,0.00020562,2]
[379740909,1755395441150,-480.0,0.00020562,2]
[379740910,1755395441159,-457.30422126,0.00020562,2]
[379740911,1755395441169,-480.0,0.00020562,2]
[379740912,1755395441179,-480.0,0.00020562,2]
[379740913,1755395441188,-984.36,0.00020562,2]
[379740914,1755395441197,-500.0,0.00020562,2]
[379740915,1755395441207,-480.0,0.00020562,2]
[379740916,1755395441216,-480.0,0.00020562,2]
[379740917,1755395441225,-493.25773968,0.00020562,2]
[379740918,1755395441234,-483.61214263,0.00020562,2]
[379740919,1755395441243,-486.94380161,0.00020562,2]
[379740920,1755395441252,-2072.76,0.00020562,2]
[379740921,1755395441262,-565.67,0.00020562,2]
[379740922,1755395441271,-644.18,0.00020562,2]
[379740923,1755395441281,-487.28280888,0.00020562,2]
[379740924,1755395441290,-488.761271,0.00020562,2]
[379740925,1755395441299,-480.0,0.00020562,2]
[379740926,1755395441308,-480.0,0.00020562,2]
[379740927,1755395441318,-486.04200519,0.00020562,2]
[379740928,1755395441327,-1411.04,0.00020562,2]
[379740929,1755395441336,-480.0,0.00020563,2]
[379740930,1755395441345,-480.0,0.00020563,2]
[379740931,1755395441355,-480.0,0.00020563,2]
[379740932,1755395441365,-480.0,0.00020563,2]
[379740933,1755395441375,-259.34434384,0.00020563,2]
[379740934,1755395441384,-488.2,0.00020563,2]
[379740935,1755395441394,-480.0,0.00020563,2]
[379740936,1755395441405,-480.0,0.00020563,2]
[379740937,1755395441415,-480.0,0.00020563,2]
[379740938,1755395441424,-480.0,0.00020563,2]
[379740939,1755395441433,-480.0,0.00020563,2]
[379740940,1755395441444,-565.91,0.00020563,2]
[379740941,1755395441453,-480.0,0.00020563,2]
[379740942,1755395441462,-480.0,0.00020563,2]
[379740943,1755395441471,-480.0,0.00020563,2]
[379740944,1755395441481,-480.0,0.00020563,2]
[379740945,1755395441490,-480.0,0.00020563,2]
[379740946,1755395441499,-480.0,0.00020563,2]
[379740947,1755395441509,-480.0,0.00020563,2]
[379740948,1755395441518,-480.0,0.00020563,2]
[379740949,1755395441527,-482.45723647,0.00020563,2]
[379740950,1755395441538,-383.88126033,0.00020563,2]
[379740951,1755395441547,-485.70444839,0.00020563,2]
[379740952,1755395441557,-1007.91,0.00020563,2]
[379740953,1755395441566,-3211.49,0.00020563,2]
[379740954,1755395441575,-389.04139788,0.00020563,2]
[379740955,1755395441584,-480.0,0.00020563,2]
[379740956,1755395441594,-480.0,0.00020563,2]
[379740957,1755395441603,-481.06318464,0.00020563,2]
[379740958,1755395441612,-481.91368108,0.00020563,2]
[379740959,1755395441622,-480.0,0.00020563,2]
[379740960,1755395441631,-485.40935309,0.00020563,2]
[379740961,1755395441642,-487.57409894,0.00020563,2]
[379740962,1755395441651,-480.0,0.00020563,2]
[379740963,1755395441661,-483.18386435,0.00020563,2]
[379740964,1755395441670,-480.0,0.00020563,2]
[379740965,1755395441680,-480.0,0.00020563,2]
[379740966,1755395441690,-480.0,0.00020563,2]
[379740967,1755395441699,-740.43,0.00020563,2]
[379740968,1755395441708,-480.0,0.00020564,2]
[379740969,1755395441718,-480.0,0.00020564,2]
[379740970,1755395441726,-480.0,0.00020564,2]
[379740971,1755395441736,-480.0,0.00020564,2]
[379740972,1755395441745,-480.0,0.00020564,2]
[379740973,1755395441755,-480.0,0.00020564,2]
[379740974,1755395441769,-480.0,0.00020564,2]
[379740975,1755395441779,-480.0,0.00020564,2]
[379740976,1755395441788,-1730.9,0.00020564,2]
[379740977,1755395441798,-4954.53,0.00020564,2]
[379740978,1755395441809,-573.05,0.00020564,2]
[379740979,1755395441818,-160.0,0.00020598,7]
[379740980,1755395441828,-153.57226776,0.00020603,2]
[379740981,1755395441837,-534.34,0.00020608,2]
[379740982,1755395441847,-528.38334358,0.00020617,2]
[379740983,1755395441856,-843.58077381,0.00020617,2]
[379740984,1755395441865,-417.15472785,0.00020617,2]
[379740985,1755395441874,-462.1417622,0.00020617,2]
[379740986,1755395441883,-232.11368524,0.00020617,2]
[379740987,1755395441893,-215.68093138,0.00020617,2]
[379740988,1755395441902,-160.0,0.00020617,2]
[379740989,1755395441911,-160.0,0.00020617,2]
[379740990,1755395441920,-12681.6255076,0.00020617,2]
[379740991,1755395441929,-277.9,0.00020626,2]
[379740992,1755395441939,-222.12693965,0.00020699,2]
[379740993,1755395441948,-160.0,0.00020712,8]
[379740994,1755395441957,-1692.01715755,0.00020734,2]
[379740995,1755395441967,-153.57226776,0.0002074,2]
[379740996,1755395441977,-160.7608968,0.000208,2]
[379740997,1755395441986,-862.9717566,0.000208,2]
[379740998,1755395441996,-277.9,0.00020818,3]
[379740999,1755395442007,-264.0,0.00020818,2]
[379741000,1755395442016,-585.28,0.00020826,10]
[379741001,1755395442026,-745.25,0.00020826,10]
[379741002,1755395442035,-621.04,0.00020826,10]
[379741003,1755395442045,-160.0,0.00020827,9]
[379741004,1755395442056,-152.596088,0.00020828,20]
[379741005,1755395442066,-5508.27265306,0.00020836,2]
[379741006,1755395442076,-480.0,0.00020836,2]
[379741007,1755395442086,-558.41,0.00020836,2]
[379741008,1755395442095,-480.0,0.00020836,2]
[379741009,1755395442104,-480.0,0.00020836,2]
[379741010,1755395442114,-480.0,0.00020836,2]
[379741011,1755395442123,-480.0,0.00020836,2]
[379741012,1755395442132,-480.0,0.00020836,2]
[379741013,1755395442142,-480.0,0.00020836,2]
[379741014,1755395442151,-480.0,0.00020836,2]
[379741016,1755395442160,-692.84,0.00020836,2]
[379741017,1755395442169,-1170.74,0.00020836,2]
[379741018,1755395442178,-480.0,0.00020836,2]
[379741019,1755395442188,-1034.2,0.00020836,2]
[379741020,1755395442198,-712.06,0.00020836,2]
[379741021,1755395442207,-507.33839412,0.00020836,2]
[379741023,1755395442217,-364.42090735,0.00020836,2]
[379741024,1755395442226,-480.0,0.00020836,2]
[379741025,1755395442236,-480.0,0.00020836,2]
[379741026,1755395442245,-480.0,0.00020836,2]
[379741027,1755395442254,-480.0,0.00020836,2]
[379741028,1755395442264,-480.0,0.00020836,2]
[379741029,1755395442273,-480.0,0.00020836,2]
[379741030,1755395442282,-480.0,0.00020836,2]
[379741031,1755395442292,-480.0,0.00020836,2]
[379741032,1755395442301,-480.0,0.00020836,2]
[379741033,1755395442310,-984.36,0.00020836,2]
[379741034,1755395442320,-480.0,0.00020836,2]
[379741035,1755395442329,-480.0,0.00020836,2]
[379741036,1755395442339,-1358.00978242,0.00020836,2]
[379741037,1755395442429,1211.75809951,0.000199,2]
[379741038,1755395442894,-1211.75809938,0.00020403,2]
[379741039,1755395442904,-714.75021758,0.00020836,2]
[379741040,1755395442915,-565.67,0.00020836,2]
[379741041,1755395442926,-644.18,0.00020836,2]
[379741042,1755395442936,-456.70706952,0.00020836,2]
[379741043,1755395442945,-480.0,0.00020836,2]
[379741044,1755395442954,-1411.04,0.00020836,2]
[379741045,1755395442964,-503.90802699,0.00020837,2]
[379741046,1755395442973,-480.0,0.00020837,2]
[379741047,1755395442983,-480.0,0.00020837,2]
[379741048,1755395442992,-488.2,0.00020837,2]
[379741049,1755395443002,-480.0,0.00020837,2]
[379741051,1755395443011,-480.0,0.00020837,2]
[379741052,1755395443021,-480.0,0.00020837,2]
[379741053,1755395443030,-480.0,0.00020837,2]
[379741054,1755395443040,-480.0,0.00020837,2]
[379741055,1755395443050,-565.91,0.00020837,2]
[379741056,1755395443059,-480.0,0.00020837,2]
[379741057,1755395443069,-480.0,0.00020837,2]
[379741058,1755395443078,-480.0,0.00020837,2]
[379741059,1755395443088,-480.0,0.00020837,2]
[379741060,1755395443097,-480.0,0.00020837,2]
[379741061,1755395443106,-480.0,0.00020837,2]
[379741062,1755395443115,-480.0,0.00020837,2]
[379741063,1755395443125,-480.0,0.00020837,2]
[379741064,1755395443135,-1007.91,0.00020837,2]
[379741065,1755395443144,-1226.89627918,0.00020837,2]
[379741068,1755395446044,-486.9825075,0.00020562,2]
[379741069,1755395446054,-263.70706633,0.000208,2]
[379741070,1755395446066,-168.19638597,0.000208,2]
[379741071,1755395446076,-165.47448276,0.00020837,2]
[379741073,1755395472608,4726.32690435,0.0002006,2]
[379741074,1755395477358,1974.94348734,0.00020303,2]
[379741075,1755395485813,673.35445664,0.0002006,2]
[379741077,1755395496958,267.83,0.00019891,2]
[379741078,1755395580714,264.42,0.00019903,2]
[379741079,1755395623976,1197.09443544,0.000199,2]
[379741086,1755395663534,261.06,0.00019891,2]
[379741095,1755395701344,666.0,0.00019562,2]
[379741103,1755395746729,257.73,0.0001989,2]
[379741106,1755395800688,1157.19128765,0.000199,2]
[379741107,1755395827102,254.45,0.00019893,2]
[379741114,1755395909940,251.22,0.00019893,2]
[379741117,1755395970980,1118.61824468,0.000199,2]
[379741120,1755395992041,248.02,0.00019894,2]
[379741121,1755396007953,156.37978624,0.00020329,2]
[379741122,1755396043155,7879.13,0.00027734,60]
[379741123,1755396049913,1000.0,0.000198,2]
[379741124,1755396056809,1000.0,0.000198,3]
[379741125,1755396058782,209.631228,0.00013699,2]
[379741126,1755396059014,209.631228,0.00020187,2]
[379741127,1755396075402,244.86,0.00019894,2]
[379741128,1755396150498,1081.33096978,0.000199,2]
[379741129,1755396157329,241.75,0.000199,2]
[379741136,1755396240735,238.67,0.00019894,2]
[379741146,1755396320286,1045.28660414,0.000199,2]
[379741160,1755396449541,157.404658,0.00019863,2]
[379741161,1755396498603,1010.44371749,0.000199,2]
[379741168,1755396583570,300000.0,0.00028,120]
[379741185,1755396632024,-806.0,0.00020402,2]
[379741187,1755396632034,-300.0,0.00020402,2]
[379741189,1755396632043,-1200.0,0.00020402,2]
[379741191,1755396632052,-500.0,0.00020403,2]
[379741193,1755396632062,-500.0,0.00020403,2]
[379741195,1755396632071,-500.0,0.00020403,2]
[379741197,1755396632080,-367.05123923,0.00020403,2]
[379741200,1755396632089,-1010.44371727,0.00020403,2]
[379741202,1755396632099,-160.0,0.00020407,3]
[379741204,1755396632108,-260.20167922,0.0002046,2]
[379741206,1755396632117,-156.37978624,0.00020493,2]
[379741208,1755396632126,-422.61857442,0.00020517,2]
[379741210,1755396632135,-153.81016941,0.00020548,2]
[379741212,1755396632145,-273.4,0.00020552,10]
[379741214,1755396632154,-471.97,0.00020552,10]
[379741216,1755396632163,-480.0,0.00020559,2]
[379741218,1755396632172,-480.0,0.00020559,2]
[379741220,1755396632182,-902.33,0.00020559,2]
[379741222,1755396632191,-483.3991706,0.0002056,2]
[379741224,1755396632200,-438.37767211,0.0002056,2]
[379741226,1755396632209,-485.87533241,0.0002056,2]
[379741228,1755396632219,-485.9861148,0.0002056,2]
[379741230,1755396632227,-480.0,0.0002056,2]
[379741232,1755396632236,-483.47964342,0.0002056,2]
[379741234,1755396632245,-484.45210608,0.0002056,2]
[379741236,1755396632255,-483.32968074,0.0002056,2]
[379741238,1755396632267,-481.64217663,0.0002056,2]
[379741240,1755396632277,-480.0,0.0002056,2]
[379741242,1755396632286,-482.46069614,0.0002056,2]
[379741244,1755396632296,-480.0,0.0002056,2]
[379741246,1755396632306,-480.0,0.0002056,2]
[379741248,1755396632316,-409.10527255,0.0002056,2]
[379741250,1755396632325,-482.91246588,0.0002056,2]
[379741252,1755396632335,-500.0,0.0002056,2]
[379741254,1755396632344,-301.64492683,0.0002056,2]
[379741256,1755396632355,-500.0,0.0002056,2]
[379741258,1755396632364,-500.0,0.0002056,2]
[379741260,1755396632373,-500.0,0.0002056,2]
[379741262,1755396632382,-303.83520991,0.0002056,2]
[379741263,1755396632392,-630.46957693,0.0002056,2]
[379741265,1755396632401,-500.0,0.0002056,2]
[379741267,1755396632410,-500.0,0.0002056,2]
[379741269,1755396632420,-500.0,0.0002056,2]
[379741271,1755396632429,-500.0,0.0002056,2]
[379741273,1755396632438,-500.0,0.0002056,2]
[379741275,1755396632447,-500.0,0.0002056,2]
[379741277,1755396632456,-500.0,0.0002056,2]
[379741279,1755396632465,-500.0,0.0002056,2]
[379741281,1755396632474,-500.0,0.0002056,2]
[379741283,1755396632483,-500.0,0.0002056,2]
[379741285,1755396632492,-500.0,0.0002056,2]
[379741287,1755396632501,-500.0,0.0002056,2]
[379741289,1755396632511,-500.0,0.0002056,2]
[379741291,1755396632519,-500.0,0.0002056,2]
[379741293,1755396632528,-500.0,0.0002056,2]
[379741295,1755396632539,-500.0,0.0002056,2]
[379741297,1755396632548,-519.65564037,0.0002056,2]
[379741299,1755396632557,-500.0,0.0002056,2]
[379741300,1755396632567,-468.1222791,0.0002056,2]
[379741302,1755396632576,-544.03208431,0.0002056,2]
[379741304,1755396632585,-500.0,0.0002056,2]
[379741306,1755396632594,-500.0,0.0002056,2]
[379741308,1755396632603,-500.0,0.0002056,2]
[379741310,1755396632613,-500.0,0.0002056,2]
[379741312,1755396632622,-500.0,0.0002056,2]
[379741314,1755396632631,-484.77022302,0.0002056,2]
[379741316,1755396632640,-500.0,0.0002056,2]
[379741318,1755396632649,-500.0,0.0002056,2]
[379741320,1755396632658,-500.0,0.0002056,2]
[379741322,1755396632667,-500.0,0.0002056,2]
[379741324,1755396632676,-500.0,0.0002056,2]
[379741326,1755396632685,-500.0,0.0002056,2]
[379741328,1755396632694,-500.0,0.0002056,2]
[379741330,1755396632704,-500.0,0.0002056,2]
[379741332,1755396632713,-500.0,0.0002056,2]
[379741334,1755396632722,-480.0,0.0002056,2]
[379741336,1755396632732,-480.0,0.0002056,2]
[379741338,1755396632741,-480.0,0.0002056,2]
[379741340,1755396632751,-482.54974986,0.0002056,2]
[379741342,1755396632761,-480.0,0.0002056,2]
[379741344,1755396632770,-480.0,0.0002056,2]
[379741346,1755396632779,-207.31006656,0.0002056,2]
[379741347,1755396632789,-480.0,0.0002056,2]
[379741348,1755396632798,-523.34,0.0002056,2]
[379741349,1755396632808,-480.0,0.0002056,2]
[379741350,1755396632818,-481.49069307,0.0002056,2]
[379741351,1755396632827,-489.1938535,0.0002056,2]
[379741352,1755396632837,-480.0,0.0002056,2]
[379741353,1755396632846,-480.0,0.0002056,2]
[379741354,1755396632855,-480.20076317,0.0002056,2]
[379741355,1755396632864,-480.0,0.0002056,2]
[379741356,1755396632874,-480.0,0.0002056,2]
[379741357,1755396632883,-484.61599917,0.0002056,2]
[379741358,1755396632892,-1312.62,0.0002056,2]
[379741359,1755396632901,-482.60583858,0.0002056,2]
[379741360,1755396632911,-480.0,0.0002056,2]
[379741361,1755396632920,-483.74014811,0.0002056,2]
[379741362,1755396632930,-480.0,0.0002056,2]
[379741363,1755396632939,-488.79909207,0.0002056,2]
[379741364,1755396632948,-487.12808295,0.0002056,2]
[379741365,1755396632958,-484.94886321,0.0002056,2]
[379741366,1755396632967,-687.29,0.0002056,2]
[379741367,1755396632976,-483.46515151,0.0002056,2]
[379741368,1755396632987,-480.0,0.0002056,2]
[379741369,1755396632996,-1271.12,0.0002056,2]
[379741370,1755396633006,-485.32886137,0.0002056,2]
[379741371,1755396633015,-491.86896411,0.0002056,2]
[379741372,1755396633025,-501.98254086,0.0002056,2]
[379741373,1755396633035,-480.0,0.0002056,2]
[379741374,1755396633045,-599.49602459,0.0002056,2]
[379741375,1755396633055,-652.72,0.0002056,2]
[379741376,1755396633065,-480.0,0.0002056,2]
[379741377,1755396633074,-1203.67,0.0002056,2]
[379741378,1755396633084,-491.48235377,0.0002056,2]
[379741379,1755396633095,-480.0,0.0002056,2]
[379741380,1755396633104,-480.0,0.0002056,2]
[379741381,1755396633113,-481.85813162,0.0002056,2]
[379741382,1755396633123,-480.0,0.0002056,2]
[379741383,1755396633132,-480.0,0.0002056,2]
[379741384,1755396633142,-480.0,0.0002056,2]
[379741385,1755396633152,-480.0,0.0002056,2]
[379741386,1755396633161,-480.0,0.0002056,2]
[379741387,1755396633170,-480.0,0.0002056,2]
[379741388,1755396633181,-480.0,0.0002056,2]
[379741389,1755396633190,-518.53,0.0002056,2]
[379741390,1755396633200,-578.0,0.0002056,2]
[379741391,1755396633210,-480.0,0.0002056,2]
[379741392,1755396633220,-500.0,0.0002056,2]
[379741393,1755396633229,-480.0,0.0002056,2]
[379741394,1755396633238,-480.0,0.0002056,2]
[379741395,1755396633248,-480.0,0.0002056,2]
[379741396,1755396633259,-1900.03,0.0002056,2]
[379741397,1755396633270,-502.91952934,0.0002056,2]
[379741398,1755396633280,-480.0,0.00020561,2]
[379741399,1755396633290,-480.0,0.00020561,2]
[379741400,1755396633301,-480.0,0.00020561,2]
[379741401,1755396633310,-481.61476054,0.00020561,2]
[379741402,1755396633320,-480.0,0.00020561,2]
[379741403,1755396633329,-518.75,0.00020561,2]
[379741404,1755396633339,-480.0,0.00020561,2]
[379741405,1755396633350,-480.0,0.00020561,2]
[379741406,1755396633360,-480.0,0.00020561,2]
[379741407,1755396633369,-480.0,0.00020561,2]
[379741408,1755396633379,-480.0,0.00020561,2]
[379741409,1755396633388,-485.0632167,0.00020561,2]
[379741410,1755396633398,-480.0,0.00020561,2]
[379741411,1755396633407,-302.44723642,0.00020561,2]
[379741412,1755396633417,-481.90462089,0.00020561,2]
[379741413,1755396633428,-486.0493594,0.00020561,2]
[379741414,1755396633439,-3555.04,0.00020561,2]
[379741415,1755396633448,-274.18808236,0.00020561,2]
[379741416,1755396633458,-480.0,0.00020561,2]
[379741417,1755396633467,-480.0,0.00020561,2]
[379741418,1755396633476,-481.59120767,0.00020561,2]
[379741419,1755396633487,-383.43266806,0.00020561,2]
[379741420,1755396633497,-485.82332885,0.00020561,2]
[379741421,1755396633506,-480.0,0.00020561,2]
[379741422,1755396633515,-480.0,0.00020561,2]
[379741423,1755396633525,-923.92,0.00020561,2]
[379741424,1755396633534,-709.58,0.00020561,2]
[379741425,1755396633545,-480.0,0.00020561,2]
[379741426,1755396633555,-487.47159753,0.00020561,2]
[379741427,1755396633564,-168.0,0.00020561,2]
[379741428,1755396633574,-480.0,0.00020562,2]
[379741429,1755396633584,-480.0,0.00020562,2]
[379741430,1755396633593,-483.4217367,0.00020562,2]
[379741431,1755396633602,-480.0,0.00020562,2]
[379741432,1755396633611,-482.65967592,0.00020562,2]
[379741433,1755396633621,-483.2603545,0.00020562,2]
[379741434,1755396633631,-434.87949414,0.00020562,2]
[379741435,1755396633641,-480.0,0.00020562,2]
[379741436,1755396633650,-481.98015256,0.00020562,2]
[379741437,1755396633660,-486.32423072,0.00020562,2]
[379741438,1755396633669,-480.0,0.00020562,2]
[379741439,1755396633679,-482.6507101,0.00020562,2]
[379741440,1755396633689,-1003.59890527,0.00020562,2]
[379741441,1755396633698,-481.57261832,0.00020562,2]
[379741442,1755396633707,-480.0,0.00020562,2]
[379741443,1755396633718,-382.70278884,0.00020562,2]
[379741444,1755396633727,-480.0,0.00020562,2]
[379741445,1755396633737,-396.31519674,0.00020562,2]
[379741446,1755396633746,-482.68702148,0.00020562,2]
[379741447,1755396633755,-483.68220488,0.00020562,2]
[379741448,1755396633765,-480.0,0.00020562,2]
[379741449,1755396633774,-481.96682274,0.00020562,2]
[379741450,1755396633784,-483.16122813,0.00020562,2]
[379741451,1755396633794,-483.57925394,0.00020562,2]
[379741452,1755396633805,-424.12774147,0.00020562,2]
[379741453,1755396633815,-484.69036204,0.00020562,2]
[379741454,1755396633824,-482.82717238,0.00020562,2]
[379741455,1755396633834,-483.55924908,0.00020562,2]
[379741456,1755396633843,-601.85759072,0.00020562,2]
[379741457,1755396633853,-484.5392304,0.00020562,2]
[379741458,1755396633862,-480.0,0.00020562,2]
[379741459,1755396633872,-482.53311485,0.00020562,2]
[379741460,1755396633881,-480.0,0.00020562,2]
[379741461,1755396633892,-553.31238612,0.00020562,2]
[379741462,1755396633901,-480.0,0.00020562,2]
[379741463,1755396633911,-480.0,0.00020562,2]
[379741464,1755396633921,-408.57406063,0.00020562,2]
[379741465,1755396633932,-208.12300978,0.00020562,2]
[379741466,1755396633941,-490.50868777,0.00020562,2]
[379741467,1755396633950,-1658.78,0.00020562,2]
[379741468,1755396633960,-485.16848075,0.00020562,2]
[379741469,1755396633969,-487.74642849,0.00020562,2]
[379741470,1755396633978,-491.72420549,0.00020562,2]
[379741471,1755396633988,-683.35196937,0.00020562,2]
[379741487,1755396637973,-1983.60627737,0.00020562,2]
[379741976,1755396643030,-2100.30175326,0.00020562,2]
[379741978,1755396643041,-480.0,0.00020562,2]
[379741980,1755396643051,-480.0,0.00020562,2]
[379741982,1755396643062,-480.0,0.00020563,2]
[379741984,1755396643073,-485.11926262,0.00020563,2]
[379741986,1755396643084,-156.41099,0.00020563,20]
[379741987,1755396643094,-344.30594512,0.00020563,2]
[379741990,1755396643105,-235.84478611,0.00020563,2]
[379741991,1755396643115,-512.07,0.00020563,2]
[379741994,1755396643126,-480.0,0.00020563,2]
[379741996,1755396643137,-549.17,0.00020563,2]
[379741998,1755396643149,-231.6,0.00020613,2]
[379742000,1755396643159,-151.0,0.00020616,2]
[379742002,1755396643169,-151.0,0.00020616,2]
[379742003,1755396643179,-151.0,0.00020616,2]
[379742005,1755396643188,-151.0,0.00020616,2]
[379742008,1755396643197,-76.09409781,0.00020616,2]
[379744494,1755396669155,943.08080294,0.000199,2]
[379747579,1755396809625,724.9413519,0.00019532,2]
[379747583,1755396834816,911.64477604,0.000199,2]
[379747600,1755397011972,881.25661709,0.000199,2]
[379747604,1755397049666,168.0,0.00020323,2]
[379747608,1755397135586,205.74815719,0.00028,120]
[379747609,1755397151278,205.284483,0.00013699,2]
[379747611,1755397151685,205.284483,0.00020187,2]
[379747612,1755397161735,399997.7,0.00028767,120]
[379747613,1755397191853,851.88139653,0.000199,2]
[379747622,1755397362086,823.48534995,0.000199,2]
[379747623,1755397433169,169.460644,0.00019863,2]
[379747633,1755397521752,347.87,0.000204,2]
[379747636,1755397532076,796.03583814,0.000199,2]
[379747638,1755397586831,9278.9484826,0.0001946,2]
[379747644,1755397711016,227.6764693,0.0002036,2]
[379747645,1755397711579,769.50131026,0.000199,2]
[379747646,1755397714590,8370.84859489,0.0002,2]
[379747647,1755397714786,161.78466471,0.00028,120]